bitfinex-derivatives/quotes_SOLF0:USTF0_20260314
["timestamp","ask_amount","ask_price","bid_price","bid_amount"]
[1773516789921,9.24834408,86.956,86.914,10.353]
[1773516790213,9.24834408,86.955,86.914,10.353]
[1773516790414,9.24834408,86.954,86.914,10.353]
[1773516790616,9.24834408,86.953,86.914,10.353]
[1773516790814,3.12385533,86.96,86.914,14.76985678]
[1773516791014,18.61030148,86.959,86.915,4.41685678]
[1773516791218,9.24718118,86.958,86.915,4.41685678]
[1773516791517,10.347,86.965,86.915,4.41685678]
[1773516791518,9.24718118,86.957,86.915,4.41685678]
[1773516791818,9.24718118,86.956,86.915,4.41685678]
[1773516792017,9.24718118,86.955,86.915,4.41685678]
[1773516792219,9.24718118,86.954,86.915,4.41685678]
[1773516792420,9.24718118,86.953,86.915,4.41685678]
[1773516792616,10.347,86.965,86.915,4.41685678]
[1773516792817,18.608458,86.964,86.915,4.41685678]
[1773516793022,18.608458,86.963,86.915,4.41685678]
[1773516793325,18.608458,86.962,86.915,4.41685678]
[1773516793514,18.608458,86.961,86.915,4.41685678]
[1773516793715,18.608458,86.96,86.915,4.41685678]
[1773516793918,9.24626555,86.959,86.915,4.41685678]
[1773516794123,9.24626555,86.958,86.915,4.41685678]
[1773516794323,9.24626555,86.957,86.915,4.41685678]
[1773516794623,9.24626555,86.956,86.915,4.41685678]
[1773516794825,9.24626555,86.955,86.915,4.41685678]
[1773516795025,9.24626555,86.954,86.915,4.41685678]
[1773516795221,10.347,86.965,86.915,4.41685678]
[1773516795419,18.59337035,86.964,86.915,4.41685678]
[1773516795620,18.59337035,86.963,86.915,4.41685678]
[1773516795822,18.59337035,86.962,86.915,4.41685678]
[1773516796123,18.59337035,86.961,86.915,4.41685678]
[1773516796323,18.59337035,86.96,86.915,4.41685678]
[1773516796527,9.23876327,86.959,86.915,4.41685678]
[1773516796724,9.23876327,86.958,86.915,4.41685678]
[1773516797026,9.23876327,86.957,86.915,4.41685678]
[1773516797325,9.23876327,86.956,86.915,4.41685678]
[1773516797522,9.23876327,86.955,86.915,4.41685678]
[1773516797720,10.347,86.965,86.915,4.41685678]
[1773516797920,18.59267629,86.964,86.915,4.41685678]
[1773516798116,18.59267629,86.963,86.915,4.41685678]
[1773516798425,9.35426304,86.962,86.915,4.41685678]
[1773516798625,9.35426304,86.961,86.915,4.41685678]
[1773516798830,10.347,86.965,86.915,4.41685678]
[1773516799020,9.35406858,86.964,86.915,4.41685678]
[1773516799223,9.35406858,86.963,86.915,4.41685678]
[1773516799418,9.35406858,86.962,86.915,4.41685678]
[1773516799629,9.35406858,86.961,86.915,4.41685678]
[1773516799823,10.347,86.965,86.915,4.41685678]
[1773516800024,9.35390602,86.964,86.915,4.41685678]
[1773516800226,9.35390602,86.963,86.915,4.41685678]
[1773516800425,9.35390602,86.962,86.915,4.41685678]
[1773516800627,9.35390602,86.961,86.915,4.41685678]
[1773516800828,10.347,86.965,86.915,4.41685678]
[1773516801025,9.35377551,86.964,86.915,4.41685678]
[1773516801328,9.35377551,86.963,86.915,4.41685678]
[1773516801534,9.35377551,86.962,86.915,4.41685678]
[1773516801729,9.35377551,86.961,86.915,4.41685678]
[1773516802030,10.347,86.965,86.915,4.41685678]
[1773516802231,9.3536751,86.964,86.915,4.41685678]
[1773516802432,9.3536751,86.963,86.915,4.41685678]
[1773516802633,9.3536751,86.962,86.92,4.42193409]
[1773516802832,9.3536751,86.961,86.92,4.42193409]
[1773516803032,10.347,86.965,86.92,4.42193409]
[1773516803229,9.35360799,86.964,86.92,4.42193409]
[1773516803533,9.35360799,86.963,86.92,4.42193409]
[1773516803731,9.35360799,86.962,86.92,4.42193409]
[1773516803931,9.35360799,86.961,86.92,4.42193409]
[1773516804233,10.347,86.965,86.92,4.42193409]
[1773516804430,9.35355534,86.964,86.92,4.42193409]
[1773516804630,9.35355534,86.963,86.92,4.42193409]
[1773516804830,9.35355534,86.962,86.92,4.42193409]
[1773516805031,9.35355534,86.961,86.92,4.42193409]
[1773516805231,10.347,86.965,86.92,4.42193409]
[1773516805433,9.35357188,86.964,86.92,4.42193409]
[1773516805729,9.35357188,86.963,86.92,4.42193409]
[1773516805930,9.35357188,86.962,86.92,4.42193409]
[1773516806129,9.35357188,86.961,86.92,4.42193409]
[1773516806334,10.347,86.965,86.92,4.42193409]
[1773516806536,9.35361723,86.964,86.92,4.42193409]
[1773516806737,9.35361723,86.963,86.92,4.42193409]
[1773516806936,9.35361723,86.962,86.92,4.42193409]
[1773516807131,10.347,86.965,86.92,4.42193409]
[1773516807132,9.35361723,86.961,86.92,4.42193409]
[1773516807336,10.347,86.965,86.92,4.42193409]
[1773516807537,9.35369153,86.964,86.92,4.42193409]
[1773516807737,9.35369153,86.963,86.92,4.42193409]
[1773516807938,9.35369153,86.962,86.92,4.42193409]
[1773516808238,18.60216311,86.961,86.92,4.42193409]
[1773516808436,9.24847158,86.96,86.92,4.42193409]
[1773516808636,9.24847158,86.959,86.92,4.42193409]
[1773516808839,9.24847158,86.958,86.92,4.42193409]
[1773516809033,9.24847158,86.957,86.92,4.42193409]
[1773516809234,9.24847158,86.956,86.92,4.42193409]
[1773516809436,9.24847158,86.955,86.92,4.42193409]
[1773516809735,9.24847158,86.954,86.92,4.42193409]
[1773516809937,9.24847158,86.953,86.922,4.42402352]
[1773516810136,10.347,86.965,86.922,4.42402352]
[1773516810339,18.60280109,86.964,86.922,4.42402352]
[1773516810634,18.60280109,86.963,86.922,4.42402352]
[1773516810830,18.60280109,86.962,86.922,4.42402352]
[1773516811035,18.60280109,86.961,86.922,4.42402352]
[1773516811335,9.24876702,86.96,86.922,4.42402352]
[1773516811639,9.24876702,86.959,86.922,4.42402352]
[1773516811938,9.24876702,86.958,86.922,4.42402352]
[1773516812138,9.24876702,86.957,86.922,4.42402352]
[1773516812340,9.24876702,86.956,86.922,4.42402352]
[1773516812541,9.24876702,86.955,86.922,4.42402352]
[1773516812740,9.24876702,86.954,86.922,4.42402352]
[1773516812938,9.24876702,86.953,86.922,4.42402352]
[1773516813138,10.347,86.965,86.922,4.42402352]
[1773516813341,18.60220658,86.964,86.922,4.42402352]
[1773516813544,9.24834285,86.963,86.922,4.42402352]
[1773516813740,9.24834285,86.962,86.922,4.42402352]
[1773516814043,9.24834285,86.961,86.922,4.42402352]
[1773516814243,9.24834285,86.96,86.922,4.42402352]
[1773516814444,9.24834285,86.959,86.922,4.42402352]
[1773516814644,9.24834285,86.958,86.922,4.42402352]
[1773516814844,9.24834285,86.957,86.922,4.42402352]
[1773516815046,10.347,86.965,86.922,4.42402352]
[1773516815343,18.60449376,86.964,86.922,4.42402352]
[1773516815646,9.24962451,86.963,86.922,4.42402352]
[1773516815845,9.24962451,86.962,86.922,4.42402352]
[1773516816045,9.24962451,86.961,86.922,4.42402352]
[1773516816344,9.24962451,86.96,86.922,4.42402352]
[1773516816548,9.24962451,86.959,86.922,4.42402352]
[1773516816843,9.24962451,86.958,86.922,4.42402352]
[1773516817043,9.24962451,86.957,86.922,4.42402352]
[1773516817348,10.347,86.965,86.922,4.42402352]
[1773516817541,18.60607301,86.964,86.922,4.42402352]
[1773516817740,9.25061745,86.963,86.922,4.42402352]
[1773516817938,9.25061745,86.962,86.922,4.42402352]
[1773516818140,9.25061745,86.961,86.922,4.42402352]
[1773516818338,9.25061745,86.96,86.922,4.42402352]
[1773516818640,9.25061745,86.959,86.922,4.42402352]
[1773516818942,9.25061745,86.958,86.922,4.42402352]
[1773516819142,9.25061745,86.957,86.922,4.42402352]
[1773516819344,10.347,86.965,86.922,4.42402352]
[1773516819543,18.60734012,86.964,86.922,4.42402352]
[1773516819744,9.25121396,86.963,86.922,4.42402352]
[1773516819945,9.25121396,86.962,86.922,4.42402352]
[1773516820145,9.25121396,86.961,86.922,4.42402352]
[1773516820345,9.25121396,86.96,86.922,4.42402352]
[1773516820545,9.25121396,86.959,86.922,4.42402352]
[1773516820745,9.25121396,86.958,86.922,4.42402352]
[1773516820947,9.25121396,86.957,86.922,4.42402352]
[1773516821148,9.25121396,86.956,86.922,4.42402352]
[1773516821347,10.347,86.965,86.922,4.42402352]
[1773516821648,18.60911299,86.964,86.922,4.42402352]
[1773516821845,18.60911299,86.963,86.922,4.42402352]
[1773516822048,9.25205267,86.962,86.922,4.42402352]
[1773516822346,9.25205267,86.961,86.922,4.42402352]
[1773516822547,9.25205267,86.96,86.922,4.42402352]
[1773516822747,9.25205267,86.959,86.922,4.42402352]
[1773516822941,9.25205267,86.958,86.922,4.42402352]
[1773516823141,9.25205267,86.957,86.922,4.42402352]
[1773516823345,9.25205267,86.956,86.922,4.42402352]
[1773516823545,10.347,86.965,86.922,4.42402352]
[1773516823745,18.61115359,86.964,86.922,4.42402352]
[1773516823945,18.61115359,86.963,86.922,4.42402352]
[1773516824146,9.25301305,86.962,86.922,4.42402352]
[1773516824348,9.25301305,86.961,86.922,4.42402352]
[1773516824648,9.25301305,86.96,86.922,4.42402352]
[1773516824851,9.25301305,86.959,86.922,4.42402352]
[1773516825052,9.25301305,86.958,86.922,4.42402352]
[1773516825251,9.25301305,86.957,86.922,4.42402352]
[1773516825452,9.25301305,86.956,86.922,4.42402352]
[1773516825654,10.347,86.965,86.922,4.42402352]
[1773516825855,18.61227175,86.964,86.922,4.42402352]
[1773516826052,18.61227175,86.963,86.922,4.42402352]
[1773516826355,18.61227175,86.962,86.922,4.42402352]
[1773516826558,9.25354668,86.961,86.922,4.42402352]
[1773516826760,9.25354668,86.96,86.922,4.42402352]
[1773516826950,9.25354668,86.959,86.922,4.42402352]
[1773516827156,9.25354668,86.958,86.922,4.42402352]
[1773516827457,9.25354668,86.957,86.922,4.42402352]
[1773516827657,9.25354668,86.956,86.922,4.42402352]
[1773516827855,9.25354668,86.955,86.922,4.42402352]
[1773516828157,10.347,86.965,86.922,4.42402352]
[1773516828359,18.61539684,86.964,86.922,4.42402352]
[1773516828657,18.61539684,86.963,86.922,4.42402352]
[1773516828857,18.61539684,86.962,86.922,4.42402352]
[1773516829058,9.25539671,86.961,86.922,4.42402352]
[1773516829261,9.25539671,86.96,86.922,4.42402352]
[1773516829458,9.25539671,86.959,86.922,4.42402352]
[1773516829657,9.25539671,86.958,86.922,4.42402352]
[1773516829858,9.25539671,86.957,86.922,4.42402352]
[1773516830061,9.25539671,86.956,86.922,4.42402352]
[1773516830260,9.25539671,86.955,86.922,4.42402352]
[1773516830461,10.347,86.965,86.922,4.42402352]
[1773516830658,18.61503548,86.964,86.922,4.42402352]
[1773516830962,18.61503548,86.963,86.922,4.42402352]
[1773516831162,18.61503548,86.962,86.922,4.42402352]
[1773516831461,9.25521658,86.961,86.922,4.42402352]
[1773516831661,9.25521658,86.96,86.922,4.42402352]
[1773516831864,9.25521658,86.959,86.922,4.42402352]
[1773516832061,9.25521658,86.958,86.922,4.42402352]
[1773516832262,9.25521658,86.957,86.922,4.42402352]
[1773516832462,9.25521658,86.956,86.922,4.42402352]
[1773516832663,9.25521658,86.955,86.922,4.42402352]
[1773516832865,10.347,86.965,86.922,4.42402352]
[1773516833164,18.61690189,86.964,86.922,4.42402352]
[1773516833361,18.61690189,86.963,86.922,4.42402352]
[1773516833561,18.61690189,86.962,86.922,4.42402352]
[1773516833761,9.25614396,86.961,86.922,4.42402352]
[1773516833961,9.25614396,86.96,86.922,4.42402352]
[1773516834162,9.25614396,86.959,86.922,4.42402352]
[1773516834363,9.25614396,86.958,86.922,4.42402352]
[1773516834565,9.25614396,86.957,86.922,4.42402352]
[1773516834761,9.25614396,86.956,86.922,4.42402352]
[1773516834962,10.347,86.965,86.922,4.42402352]
[1773516835163,18.61673959,86.964,86.922,4.42402352]
[1773516835360,18.61673959,86.963,86.922,4.42402352]
[1773516835663,9.25602539,86.962,86.922,4.42402352]
[1773516835866,9.25602539,86.961,86.922,4.42402352]
[1773516836067,9.25602539,86.96,86.922,4.42402352]
[1773516836265,9.25602539,86.959,86.922,4.42402352]
[1773516836464,9.25602539,86.958,86.922,4.42402352]
[1773516836666,9.25602539,86.957,86.922,4.42402352]
[1773516836867,9.25602539,86.956,86.922,4.42402352]
[1773516837066,10.347,86.965,86.922,4.42402352]
[1773516837268,18.61642173,86.964,86.922,4.42402352]
[1773516837469,18.61642173,86.963,86.922,4.42402352]
[1773516837773,18.61641198,86.962,86.922,4.42402352]
[1773516837974,9.25587171,86.961,86.922,4.42402352]
[1773516838173,9.25587171,86.96,86.922,4.42402352]
[1773516838475,9.25587171,86.959,86.922,4.42402352]
[1773516838679,9.25587171,86.958,86.922,4.42402352]
[1773516838971,9.25587171,86.957,86.922,4.42402352]
[1773516839177,9.25587171,86.956,86.922,4.42402352]
[1773516839379,9.25587171,86.955,86.922,4.42402352]
[1773516839569,10.347,86.965,86.922,4.42402352]
[1773516839771,18.6165431,86.964,86.922,4.42402352]
[1773516839975,18.6165431,86.963,86.922,4.42402352]
[1773516840175,18.6165431,86.962,86.922,4.42402352]
[1773516840374,9.25591131,86.961,86.922,4.42402352]
[1773516840572,9.25591131,86.96,86.922,4.42402352]
[1773516840783,9.25591131,86.959,86.922,4.42402352]
[1773516840984,9.25591131,86.958,86.922,4.42402352]
[1773516841183,9.25591131,86.957,86.922,4.42402352]
[1773516841480,9.25591131,86.956,86.922,4.42402352]
[1773516841676,9.25591131,86.955,86.922,4.42402352]
[1773516841873,10.347,86.965,86.922,4.42402352]
[1773516842076,18.62038835,86.964,86.922,4.42402352]
[1773516842276,18.62038835,86.963,86.922,4.42402352]
[1773516842483,18.62038835,86.962,86.922,4.42402352]
[1773516842682,9.25780454,86.961,86.922,4.42402352]
[1773516842883,9.25780454,86.96,86.922,4.42402352]
[1773516843083,9.25780454,86.959,86.922,4.42402352]
[1773516843280,9.25780454,86.958,86.922,4.42402352]
[1773516843485,9.25780454,86.957,86.922,4.42402352]
[1773516843786,9.25780454,86.956,86.922,4.42402352]
[1773516843985,9.25780454,86.955,86.922,4.42402352]
[1773516844185,10.347,86.965,86.922,4.42402352]
[1773516844385,18.62104484,86.964,86.922,4.42402352]
[1773516844585,18.62104484,86.963,86.922,4.42402352]
[1773516844884,18.62104484,86.962,86.922,4.42402352]
[1773516845184,9.25812691,86.961,86.922,4.42402352]
[1773516845382,9.25812691,86.96,86.922,4.42402352]
[1773516845687,9.25812691,86.959,86.922,4.42402352]
[1773516845980,9.25812691,86.958,86.922,4.42402352]
[1773516846285,9.25812691,86.957,86.922,4.42402352]
[1773516846486,9.25812691,86.956,86.922,4.42402352]
[1773516846687,9.25812691,86.955,86.922,4.42402352]
[1773516846882,10.347,86.965,86.922,4.42402352]
[1773516847087,18.60804043,86.964,86.922,4.42402352]
[1773516847382,18.60804043,86.963,86.922,4.42402352]
[1773516847680,18.60804043,86.962,86.922,4.42402352]
[1773516847886,9.25843144,86.961,86.922,4.42402352]
[1773516848079,9.25843144,86.96,86.922,4.42402352]
[1773516848277,9.25843144,86.959,86.922,4.42402352]
[1773516848487,9.25843144,86.958,86.922,4.42402352]
[1773516848683,9.25843144,86.957,86.922,4.42402352]
[1773516848879,9.25843144,86.956,86.922,4.42402352]
[1773516849081,9.25843144,86.955,86.922,4.42402352]
[1773516849281,9.25843144,86.954,86.922,4.42402352]
[1773516849490,10.347,86.965,86.922,4.42402352]
[1773516849682,18.60935399,86.964,86.922,4.42402352]
[1773516849883,18.60935399,86.963,86.922,4.42402352]
[1773516850083,18.60935399,86.962,86.922,4.42402352]
[1773516850283,9.25908419,86.961,86.922,4.42402352]
[1773516850485,9.25908419,86.96,86.922,4.42402352]
[1773516850685,9.25908419,86.959,86.922,4.42402352]
[1773516850983,9.25908419,86.958,86.922,4.42402352]
[1773516851184,9.25908419,86.957,86.922,4.42402352]
[1773516851385,9.25908419,86.956,86.922,4.42402352]
[1773516851581,9.25908419,86.955,86.922,4.42402352]
[1773516851786,9.25908419,86.954,86.922,4.42402352]
[1773516851990,10.347,86.965,86.922,4.42402352]
[1773516852190,18.61050313,86.964,86.922,4.42402352]
[1773516852381,18.61050313,86.963,86.922,4.42402352]
[1773516852582,18.61050313,86.962,86.922,4.42402352]
[1773516852783,9.25965515,86.961,86.922,4.42402352]
[1773516852986,9.25965515,86.96,86.922,4.42402352]
[1773516853190,9.25965515,86.959,86.922,4.42402352]
[1773516853386,9.25965515,86.958,86.922,4.42402352]
[1773516853585,9.25965515,86.957,86.922,4.42402352]
[1773516853792,9.25965515,86.956,86.922,4.42402352]
[1773516853991,9.25965515,86.955,86.922,4.42402352]
[1773516854184,9.25965515,86.954,86.922,4.42402352]
[1773516854385,10.347,86.965,86.922,4.42402352]
[1773516854583,18.6127376,86.964,86.922,4.42402352]
[1773516854783,18.6127376,86.963,86.922,4.42402352]
[1773516854993,10.347,86.965,86.922,4.42402352]
[1773516854994,18.6127376,86.962,86.922,4.42402352]
[1773516855194,18.6127376,86.961,86.922,4.42402352]
[1773516855393,9.2607702,86.96,86.922,4.42402352]
[1773516855590,9.2607702,86.959,86.922,4.42402352]
[1773516855786,9.2607702,86.958,86.922,4.42402352]
[1773516856094,9.2607702,86.957,86.922,4.42402352]
[1773516856393,9.2607702,86.956,86.922,4.42402352]
[1773516856583,9.2607702,86.955,86.922,4.42402352]
[1773516856785,9.2607702,86.954,86.922,4.42402352]
[1773516856984,9.2607702,86.953,86.922,4.42402352]
[1773516857289,10.347,86.965,86.922,4.42402352]
[1773516857489,18.61630945,86.964,86.922,4.42402352]
[1773516857690,18.61630945,86.963,86.922,4.42402352]
[1773516857994,18.61630945,86.962,86.922,4.42402352]
[1773516858193,18.61630945,86.961,86.922,4.42402352]
[1773516858394,18.61630945,86.96,86.922,4.42402352]
[1773516858594,9.26255417,86.959,86.922,4.42402352]
[1773516858794,9.26255417,86.958,86.922,4.42402352]
[1773516858993,9.26255417,86.957,86.922,4.42402352]
[1773516859194,9.26255417,86.956,86.922,4.42402352]
[1773516859494,9.26255417,86.955,86.922,4.42402352]
[1773516859696,9.26255417,86.954,86.922,4.42402352]
[1773516859893,9.26255417,86.953,86.922,4.42402352]
[1773516860196,9.26255417,86.952,86.922,4.42402352]
[1773516860392,10.347,86.965,86.922,4.42402352]
[1773516860583,18.61926922,86.964,86.922,4.42402352]
[1773516860787,18.61926922,86.963,86.922,4.42402352]
[1773516860985,18.61926922,86.962,86.922,4.42402352]
[1773516861186,18.61926922,86.961,86.922,4.42402352]
[1773516861387,18.61926922,86.96,86.922,4.42402352]
[1773516861593,10.347,86.965,86.922,4.42402352]
[1773516861594,9.26403447,86.959,86.922,4.42402352]
[1773516861787,9.26403447,86.958,86.922,4.42402352]
[1773516861990,9.26403447,86.957,86.922,4.42402352]
[1773516862192,9.26403447,86.956,86.922,4.42402352]
[1773516862495,9.26403447,86.955,86.922,4.42402352]
[1773516862794,9.26403447,86.954,86.922,4.42402352]
[1773516862994,9.26403447,86.953,86.922,4.42402352]
[1773516863186,9.26403447,86.952,86.922,4.42402352]
[1773516863386,10.347,86.965,86.922,4.42402352]
[1773516863588,18.61915902,86.964,86.922,4.42402352]
[1773516863795,18.61915902,86.963,86.922,4.42402352]
[1773516864094,18.61915902,86.962,86.922,4.42402352]
[1773516864296,18.61915902,86.961,86.922,4.42402352]
[1773516864493,18.61915902,86.96,86.922,4.42402352]
[1773516864690,9.26397878,86.959,86.922,4.42402352]
[1773516864993,9.26397878,86.958,86.922,4.42402352]
[1773516865193,9.26397878,86.957,86.922,4.42402352]
[1773516865393,9.26397878,86.956,86.922,4.42402352]
[1773516865594,9.26397878,86.955,86.922,4.42402352]
[1773516865794,9.26397878,86.954,86.922,4.42402352]
[1773516865993,9.26397878,86.953,86.922,4.42402352]
[1773516866195,9.26397878,86.952,86.922,4.42402352]
[1773516866398,10.347,86.965,86.922,4.42402352]
[1773516866696,18.6198816,86.964,86.922,4.42402352]
[1773516866898,18.6198816,86.963,86.922,4.42402352]
[1773516867096,18.6198816,86.962,86.922,4.42402352]
[1773516867397,18.6198816,86.961,86.922,4.42402352]
[1773516867593,18.6198816,86.96,86.922,4.42402352]
[1773516867795,9.26561062,86.959,86.922,4.42402352]
[1773516867992,9.26561062,86.958,86.922,4.42402352]
[1773516868195,9.26561062,86.957,86.922,4.42402352]
[1773516868492,9.26561062,86.956,86.922,4.42402352]
[1773516868789,9.26561062,86.955,86.922,4.42402352]
[1773516868992,10.347,86.965,86.922,4.42402352]
[1773516868993,9.26561062,86.954,86.922,4.42402352]
[1773516869196,9.26561062,86.953,86.922,4.42402352]
[1773516869397,9.26561062,86.952,86.922,4.42402352]
[1773516869597,10.347,86.965,86.922,4.42402352]
[1773516869798,18.61976831,86.964,86.922,4.42402352]
[1773516869999,18.61976831,86.963,86.922,4.42402352]
[1773516870195,18.61976831,86.962,86.922,4.42402352]
[1773516870395,18.61976831,86.961,86.922,4.42402352]
[1773516870590,18.61976831,86.96,86.922,4.42402352]
[1773516870896,9.26555454,86.959,86.922,4.42402352]
[1773516871193,9.26555454,86.958,86.922,4.42402352]
[1773516871395,9.26555454,86.957,86.922,4.42402352]
[1773516871596,9.26555454,86.956,86.922,4.42402352]
[1773516871797,9.26555454,86.955,86.922,4.42402352]
[1773516871996,9.26555454,86.954,86.922,4.42402352]
[1773516872298,9.26555454,86.953,86.922,4.42402352]
[1773516872498,9.26555454,86.952,86.922,4.42402352]
[1773516872701,10.347,86.965,86.922,4.42402352]
[1773516872901,18.61958994,86.964,86.922,4.42402352]
[1773516873105,18.61958994,86.963,86.922,4.42402352]
[1773516873292,10.347,86.965,86.922,4.42402352]
[1773516873293,18.61958994,86.962,86.922,4.42402352]
[1773516873493,18.61958994,86.961,86.922,4.42402352]
[1773516873694,18.61958994,86.96,86.922,4.42402352]
[1773516873897,9.26546554,86.959,86.922,4.42402352]
[1773516874197,9.26546554,86.958,86.922,4.42402352]
[1773516874510,9.26546554,86.957,86.922,4.42402352]
[1773516874803,9.26546554,86.956,86.922,4.42402352]
[1773516875000,9.26546554,86.955,86.922,4.42402352]
[1773516875200,9.26546554,86.954,86.922,4.42402352]
[1773516875401,9.26546554,86.953,86.922,4.42402352]
[1773516875603,9.26546554,86.952,86.922,4.42402352]
[1773516875804,10.347,86.965,86.922,4.42402352]
[1773516876105,18.61970404,86.964,86.922,4.42402352]
[1773516876303,18.61970404,86.963,86.922,4.42402352]
[1773516876504,18.61970404,86.962,86.922,4.42402352]
[1773516876704,18.61970404,86.961,86.922,4.42402352]
[1773516876899,9.26552292,86.96,86.922,4.42402352]
[1773516877105,9.26552292,86.959,86.922,4.42402352]
[1773516877407,9.26552292,86.958,86.922,4.42402352]
[1773516877606,9.26552292,86.957,86.922,4.42402352]
[1773516877806,9.26552292,86.956,86.922,4.42402352]
[1773516878007,9.26552292,86.955,86.922,4.42402352]
[1773516878209,9.26552292,86.954,86.922,4.42402352]
[1773516878507,9.26552292,86.953,86.922,4.42402352]
[1773516878698,9.26552292,86.952,86.922,4.42402352]
[1773516878899,10.347,86.965,86.922,4.42402352]
[1773516879100,18.57652601,86.964,86.922,4.42402352]
[1773516879308,18.57652601,86.963,86.922,4.42402352]
[1773516879508,18.57652601,86.962,86.922,4.42402352]
[1773516879706,18.57652601,86.961,86.922,4.42402352]
[1773516879908,9.26552269,86.96,86.922,4.42402352]
[1773516880107,9.26552269,86.959,86.922,4.42402352]
[1773516880307,10.347,86.965,86.922,4.42402352]
[1773516880308,9.26552269,86.958,86.922,4.42402352]
[1773516880503,9.26552269,86.957,86.922,4.42402352]
[1773516880707,9.26552269,86.956,86.922,4.42402352]
[1773516880911,9.26552269,86.955,86.922,4.42402352]
[1773516881106,9.26552269,86.954,86.922,4.42402352]
[1773516881306,9.26552269,86.953,86.922,4.42402352]
[1773516881502,10.347,86.965,86.922,4.42402352]
[1773516881707,18.57689487,86.964,86.922,4.42402352]
[1773516881908,18.57689487,86.963,86.922,4.42402352]
[1773516882211,18.57689487,86.962,86.922,4.42402352]
[1773516882412,18.57689487,86.961,86.922,4.42402352]
[1773516882608,10.347,86.965,86.922,4.42402352]
[1773516882609,9.26570767,86.96,86.922,4.42402352]
[1773516882808,9.26570767,86.959,86.922,4.42402352]
[1773516883010,9.26570767,86.958,86.922,4.42402352]
[1773516883210,9.26570767,86.957,86.922,4.42402352]
[1773516883409,9.26570767,86.956,86.922,4.42402352]
[1773516883603,9.26570767,86.955,86.922,4.42402352]
[1773516883804,9.26570767,86.954,86.922,4.42402352]
[1773516884008,9.26570767,86.953,86.922,4.42402352]
[1773516884213,10.347,86.965,86.922,4.42402352]
[1773516884408,18.57724945,86.964,86.922,4.42402352]
[1773516884606,18.57724945,86.963,86.922,4.42402352]
[1773516884810,18.57724945,86.962,86.922,4.42402352]
[1773516885014,18.57724945,86.961,86.922,4.42402352]
[1773516885214,9.265891,86.96,86.922,4.42402352]
[1773516885512,9.265891,86.959,86.922,4.42402352]
[1773516885708,9.265891,86.958,86.922,4.42402352]
[1773516885907,9.265891,86.957,86.922,4.42402352]
[1773516886111,9.265891,86.956,86.922,4.42402352]
[1773516886312,9.265891,86.955,86.922,4.42402352]
[1773516886504,9.265891,86.954,86.922,4.42402352]
[1773516886705,9.265891,86.953,86.922,4.42402352]
[1773516886910,9.265891,86.953,86.9,3.12419147]
[1773516886911,3.12419147,86.95,86.905,4.34018071]
[1773516888611,3.12419147,86.95,86.907,4.34014288]
[1773516890617,3.12419147,86.95,86.908,4.37177116]
[1773516894724,10.349,86.952,86.908,4.37177116]
[1773516899627,10.349,86.952,86.91,4.37213165]
[1773516901825,10.349,86.949,86.907,251.23888074]
[1773516902130,3.12498229,86.94,86.907,251.23888074]
[1773516903225,10.349,86.949,86.907,251.23888074]
[1773516903430,9.24513765,86.948,86.907,251.23888074]
[1773516903630,9.24513765,86.947,86.907,251.23888074]
[1773516903831,9.24513765,86.946,86.907,251.23888074]
[1773516904031,9.24513765,86.945,86.907,251.23888074]
[1773516904230,9.24513765,86.944,86.907,251.23888074]
[1773516904430,9.24513765,86.943,86.907,251.23888074]
[1773516904632,10.349,86.949,86.907,251.23888074]
[1773516904830,3.12498229,86.94,86.89,4.3827341]
[1773516905029,9.24307926,86.939,86.89,4.3827341]
[1773516905332,3.12498229,86.94,86.89,4.3827341]
[1773516906533,10.35,86.939,86.89,4.3827341]
[1773516912434,3.12498229,86.93,86.89,4.3827341]
[1773516912635,36.22,86.951,86.89,4.3827341]
[1773516912836,10.351,86.928,86.89,4.3827341]
[1773516914634,3.12498229,86.92,86.869,10.358]
[1773516914834,3.12498229,86.92,86.865,4.48744632]
[1773516915934,10.352,86.919,86.866,10.359]
[1773516916134,3.12498229,86.91,86.867,4.50462514]
[1773516916332,10.352,86.919,86.867,4.50462514]
[1773516923438,39.34498229,86.95,86.89,3.12498229]
[1773516923638,9.19805268,86.949,86.901,4.50490691]
[1773516923834,9.19805268,86.948,86.901,4.50490691]
[1773516924143,36.22,86.95,86.911,4.50249128]
[1773516925038,9.22108616,86.966,86.911,4.50249128]
[1773516925234,3.12498229,86.96,86.911,4.50249128]
[1773516925439,10.348,86.955,86.911,4.50249128]
[1773516957465,10.349,86.949,86.911,4.50249128]
[1773516961865,9.29780442,86.972,86.911,4.50249128]
[1773516962068,9.23868131,86.971,86.921,4.47272319]
[1773516962272,9.23868131,86.97,86.921,4.47272319]
[1773516962572,9.23868131,86.969,86.921,4.47272319]
[1773516962869,9.23868131,86.968,86.921,4.47272319]
[1773516963071,9.23868131,86.967,86.921,4.47272319]
[1773516963270,10.347,86.965,86.921,4.47272319]
[1773516965276,9.24881362,86.964,86.921,4.47272319]
[1773516965474,9.24881362,86.963,86.921,4.47272319]
[1773516965678,10.347,86.965,86.921,4.47272319]